fUSD/lending_fUSD_20250609
["ID","MTS","AMOUNT","RATE_DAILY","PERIOD"]
[365062596,1749435051039,-480.0,0.00018997,2]
[365062598,1749435051048,-480.0,0.00018997,2]
[365062600,1749435051058,-480.0,0.00018997,2]
[365062602,1749435051067,-591.3169164,0.00018997,2]
[365062603,1749435051076,-480.0,0.00018997,2]
[365062605,1749435051086,-480.0,0.00018997,2]
[365062607,1749435051095,-510.79915163,0.00018997,2]
[365062609,1749435051105,-480.0,0.00018997,2]
[365062611,1749435051114,-480.0,0.00018997,2]
[365062613,1749435051123,-480.0,0.00018997,2]
[365062615,1749435051132,-480.0,0.00018997,2]
[365062617,1749435051141,-526.85,0.00018997,2]
[365062619,1749435051151,-480.0,0.00018997,2]
[365062621,1749435051160,-1354.7,0.00018997,2]
[365062623,1749435051169,-596.14,0.00018997,2]
[365062625,1749435051178,-480.0,0.00018997,2]
[365062627,1749435051187,-480.0,0.00018997,2]
[365062629,1749435051196,-480.0,0.00018997,2]
[365062631,1749435051205,-480.0,0.00018997,2]
[365062633,1749435051214,-480.0,0.00018997,2]
[365062635,1749435051223,-480.0,0.00018997,2]
[365062637,1749435051233,-480.0,0.00018997,2]
[365062639,1749435051242,-480.0,0.00018997,2]
[365062641,1749435051251,-480.0,0.00018997,2]
[365062643,1749435051262,-303.90139109,0.00018997,2]
[365062645,1749435051271,-722.93,0.00018997,2]
[365062647,1749435051281,-480.0,0.00018997,2]
[365062649,1749435051291,-480.0,0.00018997,2]
[365062650,1749435051300,-961.34,0.00018997,2]
[365062652,1749435051309,-288.84680493,0.00018997,2]
[365062654,1749435051319,-480.0,0.00018997,2]
[365062656,1749435051328,-480.0,0.00018997,2]
[365062658,1749435051337,-667.45,0.00018997,2]
[365062660,1749435051346,-591.02921984,0.00018997,2]
[365062662,1749435051356,-480.0,0.00018997,2]
[365062664,1749435051366,-480.0,0.00018997,2]
[365062666,1749435051375,-1560.28,0.00018997,2]
[365062668,1749435051384,-480.0,0.00018997,2]
[365062670,1749435051393,-484.04201789,0.00018997,2]
[365062672,1749435051403,-480.0,0.00018997,2]
[365062674,1749435051412,-480.0,0.00018997,2]
[365062676,1749435051424,-480.0,0.00018997,2]
[365062678,1749435051440,-480.0,0.00018997,2]
[365062680,1749435051449,-480.0,0.00018997,2]
[365062682,1749435051459,-518.96,0.00018997,2]
[365062684,1749435051468,-480.0,0.00018997,2]
[365062686,1749435051478,-480.0,0.00018997,2]
[365062688,1749435051487,-480.0,0.00018997,2]
[365062690,1749435051496,-480.0,0.00018997,2]
[365062692,1749435051506,-480.0,0.00018997,2]
[365062694,1749435051515,-480.0,0.00018997,2]
[365062696,1749435051524,-480.0,0.00018997,2]
[365062698,1749435051534,-480.0,0.00018997,2]
[365062700,1749435051543,-480.0,0.00018997,2]
[365062702,1749435051553,-610.1,0.00018997,2]
[365062704,1749435051563,-1580.64,0.00018997,2]
[365062706,1749435051571,-500.722776,0.00018997,2]
[365062708,1749435051581,-500.722783,0.00018997,2]
[365062710,1749435051590,-480.0,0.00018997,2]
[365062712,1749435051600,-480.0,0.00018997,2]
[365062714,1749435051610,-480.0,0.00018997,2]
[365062716,1749435051620,-480.0,0.00018997,2]
[365062718,1749435051630,-480.0,0.00018997,2]
[365062720,1749435051638,-460.0,0.00018997,2]
[365062722,1749435051648,-469.44155884,0.00018998,2]
[365062724,1749435051657,-460.0,0.00018998,2]
[365062726,1749435051667,-462.79383273,0.00018998,2]
[365062728,1749435051676,-502.31465221,0.00018998,2]
[365062730,1749435051686,-428.41637008,0.00018998,2]
[365062732,1749435051695,-460.0,0.00018998,2]
[365062734,1749435051704,-500.0,0.00018999,2]
[365062736,1749435051713,-500.0,0.00018999,2]
[365062738,1749435051722,-500.0,0.00018999,2]
[365062739,1749435051731,-1580.64,0.00018999,2]
[365062741,1749435051740,-152.0,0.00019,2]
[365062743,1749435051749,-5000.0,0.00019,2]
[365062745,1749435051758,-5000.0,0.00019,2]
[365062747,1749435051767,-170505.91782073,0.00019,3]
[365062749,1749435051776,-2263.4359749,0.00019,3]
[365062751,1749435051785,-10000.0,0.00019,2]
[365062753,1749435051794,-250.0,0.00019,2]
[365062755,1749435051804,-2808.0,0.00019,2]
[365062757,1749435051814,-696.09800025,0.00019008,2]
[365062759,1749435051822,-1313.54149091,0.00019107,2]
[365062761,1749435051831,-696.09800025,0.00019119,2]
[365062763,1749435051840,-153.403735,0.00019125,3]
[365062764,1749435051850,-800.0,0.00019141,2]
[365062765,1749435051859,-800.0,0.00019141,2]
[365062767,1749435051868,-800.0,0.00019141,2]
[365062769,1749435051878,-800.0,0.00019141,2]
[365062771,1749435051888,-800.0,0.00019141,2]
[365062773,1749435051897,-800.0,0.00019141,2]
[365062775,1749435051906,-800.0,0.00019141,2]
[365062777,1749435051915,-800.0,0.00019141,2]
[365062779,1749435051924,-800.0,0.00019141,2]
[365062781,1749435051934,-821.00415648,0.00019141,2]
[365062782,1749435051945,-567.54696024,0.0001916,2]
[365062784,1749435051955,-480.0,0.0001916,2]
[365062786,1749435051964,-588.05100979,0.0001916,2]
[365062788,1749435051974,-480.0,0.0001916,2]
[365062790,1749435051984,-480.0,0.0001916,2]
[365062792,1749435051993,-765.31,0.0001916,2]
[365062794,1749435052002,-480.0,0.0001916,2]
[365062796,1749435052011,-544.27732657,0.0001916,2]
[365062798,1749435052023,-480.0,0.0001916,2]
[365062800,1749435052032,-236.0,0.0001916,2]
[365062802,1749435052041,-521.46,0.0001916,2]
[365062804,1749435052052,-480.0,0.0001916,2]
[365062806,1749435052062,-480.0,0.0001916,2]
[365062807,1749435052071,-456.60876682,0.0001916,2]
[365062809,1749435052080,-517.98,0.0001916,2]
[365062811,1749435052089,-480.0,0.0001916,2]
[365062812,1749435052098,-480.0,0.0001916,2]
[365062813,1749435052107,-480.0,0.0001916,2]
[365062814,1749435052116,-720.67,0.0001916,2]
[365062815,1749435052125,-480.0,0.0001916,2]
[365062816,1749435052134,-494.7,0.0001916,2]
[365062817,1749435052143,-232.14796933,0.00019161,2]
[365062818,1749435052152,-480.0,0.00019161,2]
[365062819,1749435052161,-480.0,0.00019161,2]
[365062820,1749435052170,-480.0,0.00019161,2]
[365062821,1749435052179,-480.0,0.00019161,2]
[365062822,1749435052187,-480.0,0.00019161,2]
[365062823,1749435052197,-480.0,0.00019161,2]
[365062824,1749435052206,-480.0,0.00019161,2]
[365062825,1749435052215,-480.0,0.00019161,2]
[365062827,1749435052225,-480.0,0.00019161,2]
[365062828,1749435052233,-480.0,0.00019161,2]
[365062829,1749435052242,-480.0,0.00019161,2]
[365062830,1749435052252,-160.0,0.00019161,2]
[365062831,1749435052263,-480.0,0.00019161,2]
[365062832,1749435052273,-250.0,0.00019161,2]
[365062833,1749435052283,-480.0,0.00019161,2]
[365062834,1749435052292,-480.0,0.00019161,2]
[365062835,1749435052301,-480.0,0.00019161,2]
[365062836,1749435052310,-508.94,0.00019161,2]
[365062837,1749435052319,-480.0,0.00019161,2]
[365062838,1749435052328,-480.0,0.00019161,2]
[365062839,1749435052337,-480.0,0.00019161,2]
[365062840,1749435052346,-480.0,0.00019161,2]
[365062841,1749435052356,-480.0,0.00019161,2]
[365062842,1749435052365,-480.0,0.00019161,2]
[365062843,1749435052374,-480.0,0.00019161,2]
[365062844,1749435052384,-480.0,0.00019161,2]
[365062846,1749435052393,-539.3,0.00019161,2]
[365062848,1749435052402,-560.42554867,0.00019161,2]
[365062850,1749435052411,-480.0,0.00019161,2]
[365062852,1749435052421,-480.0,0.00019161,2]
[365062854,1749435052430,-480.0,0.00019161,2]
[365062855,1749435052439,-480.0,0.00019161,2]
[365062857,1749435052449,-480.0,0.00019161,2]
[365062859,1749435052458,-615.72,0.00019161,2]
[365062861,1749435052467,-371.34897527,0.00019161,2]
[365062863,1749435052476,-480.0,0.00019161,2]
[365062865,1749435052485,-169.72080959,0.00019161,2]
[365062867,1749435052495,-399.96518415,0.00019161,2]
[365062869,1749435052503,-480.0,0.00019161,2]
[365062871,1749435052513,-480.0,0.00019161,2]
[365062873,1749435052522,-480.0,0.00019161,2]
[365062874,1749435052531,-480.0,0.00019161,2]
[365062875,1749435052540,-480.0,0.00019161,2]
[365062876,1749435052549,-575.0,0.00019161,2]
[365062877,1749435052559,-480.0,0.00019161,2]
[365062878,1749435052569,-480.0,0.00019161,2]
[365062879,1749435052578,-480.0,0.00019161,2]
[365062880,1749435052587,-480.0,0.00019161,2]
[365062881,1749435052596,-508.65,0.00019161,2]
[365062882,1749435052605,-480.0,0.00019161,2]
[365062884,1749435052615,-480.0,0.00019161,2]
[365062886,1749435052624,-480.0,0.00019161,2]
[365062888,1749435052633,-480.0,0.00019161,2]
[365062890,1749435052642,-301.832275,0.00019161,2]
[365062892,1749435052651,-480.0,0.00019161,2]
[365062894,1749435052660,-480.0,0.00019161,2]
[365062896,1749435052669,-480.0,0.00019161,2]
[365062913,1749435052821,-247.50831303,0.00019161,2]
[365062915,1749435052831,-643.94,0.00019161,2]
[365062916,1749435052840,-480.0,0.00019161,2]
[365062918,1749435052849,-480.0,0.00019161,2]
[365062920,1749435052859,-219.69546421,0.00019161,2]
[365062922,1749435052868,-480.0,0.00019161,2]
[365062924,1749435052880,-480.0,0.00019161,2]
[365062925,1749435052889,-213.98427796,0.00019161,2]
[365062926,1749435052898,-291.11628485,0.00019161,2]
[365062927,1749435052907,-480.0,0.00019161,2]
[365062928,1749435052917,-480.0,0.00019161,2]
[365062929,1749435052926,-160.0,0.00019161,2]
[365062930,1749435052935,-480.0,0.00019161,2]
[365062931,1749435052945,-480.0,0.00019161,2]
[365062932,1749435052956,-480.0,0.00019161,2]
[365062933,1749435052965,-596.66,0.00019161,2]
[365062934,1749435052975,-480.0,0.00019161,2]
[365062935,1749435052987,-480.0,0.00019161,2]
[365062936,1749435052996,-1023.07,0.00019161,2]
[365062937,1749435053005,-447.3920906,0.00019161,2]
[365062938,1749435053014,-480.0,0.00019161,2]
[365062939,1749435053024,-480.0,0.00019161,2]
[365062940,1749435053033,-480.0,0.00019161,2]
[365062941,1749435053042,-369.87318884,0.00019161,2]
[365062942,1749435053051,-480.0,0.00019161,2]
[365062943,1749435053061,-543.02,0.00019161,2]
[365062944,1749435053070,-480.0,0.00019161,2]
[365062945,1749435053079,-480.0,0.00019161,2]
[365062946,1749435053088,-480.0,0.00019161,2]
[365062947,1749435053097,-480.0,0.00019161,2]
[365062948,1749435053107,-480.0,0.00019161,2]
[365062949,1749435053116,-480.0,0.00019161,2]
[365062950,1749435053125,-1119.53,0.00019161,2]
[365062951,1749435053135,-198.70878484,0.00019161,2]
[365062952,1749435053144,-377.75756351,0.00019161,2]
[365062953,1749435053153,-480.0,0.00019161,2]
[365062954,1749435053162,-464.04157987,0.00019161,2]
[365062955,1749435053171,-452.31214416,0.00019161,2]
[365062956,1749435053180,-480.0,0.00019161,2]
[365062957,1749435053190,-443.16616885,0.00019161,2]
[365062958,1749435053199,-450.73512415,0.00019161,2]
[365062959,1749435053209,-291.13735987,0.00019161,2]
[365062960,1749435053219,-480.0,0.00019161,2]
[365062961,1749435053228,-480.0,0.00019161,2]
[365062962,1749435053238,-480.0,0.00019161,2]
[365062963,1749435053247,-480.0,0.00019161,2]
[365062964,1749435053256,-480.0,0.00019161,2]
[365062965,1749435053265,-480.0,0.00019161,2]
[365062966,1749435053274,-455.77002539,0.00019161,2]
[365062967,1749435053283,-364.59991139,0.00019161,2]
[365062968,1749435053292,-480.0,0.00019161,2]
[365062969,1749435053301,-480.0,0.00019161,2]
[365062970,1749435053311,-396.10829696,0.00019161,2]
[365062971,1749435053321,-475.31907018,0.00019161,2]
[365062972,1749435053330,-595.72603857,0.00019161,2]
[365062973,1749435053340,-474.43224225,0.00019161,2]
[365062974,1749435053349,-460.15906289,0.00019161,2]
[365062975,1749435053360,-480.0,0.00019161,2]
[365062976,1749435053369,-454.92788636,0.00019161,2]
[365062977,1749435053378,-480.0,0.00019161,2]
[365062978,1749435053388,-455.69346872,0.00019161,2]
[365062979,1749435053397,-449.06559512,0.00019161,2]
[365062980,1749435053406,-500.0,0.00019161,2]
[365062981,1749435053415,-480.0,0.00019161,2]
[365062982,1749435053425,-480.0,0.00019161,2]
[365062983,1749435053434,-447.41199848,0.00019161,2]
[365062984,1749435053444,-461.06459265,0.00019161,2]
[365062985,1749435053453,-452.43153377,0.00019161,2]
[365062986,1749435053462,-480.0,0.00019161,2]
[365062987,1749435053471,-452.86557636,0.00019161,2]
[365062988,1749435053481,-452.60625818,0.00019161,2]
[365062989,1749435053490,-287.70059344,0.00019161,2]
[365062990,1749435053499,-451.45551916,0.00019161,2]
[365062991,1749435053508,-466.05723945,0.00019161,2]
[365062992,1749435053517,-443.11056707,0.00019161,2]
[365062993,1749435053527,-517.85392105,0.00019161,2]
[365062994,1749435053536,-475.34162485,0.00019161,2]
[365062995,1749435053546,-440.0,0.00019161,2]
[365062996,1749435053555,-374.07256152,0.00019161,2]
[365062997,1749435053565,-505.18533808,0.00019161,2]
[365062998,1749435053576,-480.0,0.00019161,2]
[365062999,1749435053586,-445.39140326,0.00019161,2]
[365063000,1749435053595,-453.15915275,0.00019161,2]
[365063001,1749435053606,-480.0,0.00019161,2]
[365063002,1749435053615,-446.10938374,0.00019161,2]
[365063003,1749435053626,-447.19249108,0.00019161,2]
[365063004,1749435053635,-455.42535628,0.00019161,2]
[365063005,1749435053645,-474.15506594,0.00019161,2]
[365063006,1749435053654,-452.85698707,0.00019161,2]
[365063007,1749435053662,-444.02829336,0.00019161,2]
[365063008,1749435053672,-447.56317867,0.00019161,2]
[365063009,1749435053681,-480.0,0.00019161,2]
[365063010,1749435053691,-480.0,0.00019161,2]
[365063011,1749435053700,-488.39746164,0.00019161,2]
[365063012,1749435053709,-457.47699215,0.00019161,2]
[365063013,1749435053718,-187.40048964,0.00019161,2]
[365063014,1749435053727,-480.0,0.00019161,2]
[365063015,1749435053736,-480.0,0.00019161,2]
[365063016,1749435053746,-480.0,0.00019161,2]
[365063017,1749435053758,-509.42656421,0.00019161,2]
[365063018,1749435053767,-444.15400352,0.00019161,2]
[365063019,1749435053776,-459.42670522,0.00019161,2]
[365063020,1749435053785,-480.0,0.00019161,2]
[365063021,1749435053794,-480.0,0.00019161,2]
[365063022,1749435053803,-450.91636947,0.00019161,2]
[365063023,1749435053813,-534.51265334,0.00019161,2]
[365063024,1749435053822,-482.37775776,0.00019161,2]
[365063025,1749435053830,-480.0,0.00019161,2]
[365063026,1749435053839,-464.97412895,0.00019161,2]
[365063027,1749435053849,-480.0,0.00019161,2]
[365063028,1749435053860,-776.2,0.00019161,2]
[365063029,1749435053869,-500.0,0.00019161,2]
[365063030,1749435053878,-480.0,0.00019161,2]
[365063031,1749435053887,-475.92763269,0.00019161,2]
[365063032,1749435053896,-480.0,0.00019161,2]
[365063033,1749435053905,-808.39,0.00019161,2]
[365063034,1749435053914,-454.78336111,0.00019161,2]
[365063035,1749435053924,-480.0,0.00019161,2]
[365063036,1749435053933,-480.0,0.00019161,2]
[365063037,1749435053942,-480.0,0.00019161,2]
[365063038,1749435053954,-480.0,0.00019161,2]
[365063039,1749435053963,-444.32198371,0.00019161,2]
[365063040,1749435053972,-430.16791392,0.00019161,2]
[365063041,1749435053981,-880.09,0.00019161,2]
[365063042,1749435053991,-480.0,0.00019161,2]
[365063043,1749435054000,-480.0,0.00019161,2]
[365063044,1749435054010,-480.0,0.00019161,2]
[365063045,1749435054022,-464.55980373,0.00019161,2]
[365063046,1749435054031,-480.0,0.00019161,2]
[365063047,1749435054040,-480.0,0.00019161,2]
[365063048,1749435054049,-480.0,0.00019161,2]
[365063049,1749435054058,-480.0,0.00019161,2]
[365063050,1749435054067,-265.16487183,0.00019161,2]
[365063051,1749435054076,-480.0,0.00019161,2]
[365063052,1749435054085,-480.0,0.00019161,2]
[365063053,1749435054094,-676.22,0.00019161,2]
[365063054,1749435054103,-283.35907517,0.00019161,2]
[365063055,1749435054113,-532.00890499,0.00019161,2]
[365063056,1749435054125,-643.72,0.00019161,2]
[365063057,1749435054134,-480.0,0.00019161,2]
[365063058,1749435054143,-480.0,0.00019161,2]
[365063059,1749435054152,-1284.05,0.00019161,2]
[365063060,1749435054161,-480.0,0.00019161,2]
[365063061,1749435054170,-480.0,0.00019161,2]
[365063062,1749435054179,-480.0,0.00019161,2]
[365063063,1749435054188,-480.0,0.00019161,2]
[365063064,1749435054197,-480.0,0.00019161,2]
[365063065,1749435054206,-480.0,0.00019161,2]
[365063066,1749435054217,-546.76760718,0.00019161,2]
[365063067,1749435054226,-480.0,0.00019161,2]
[365063068,1749435054236,-480.0,0.00019161,2]
[365063069,1749435054246,-454.39805675,0.00019161,2]
[365063070,1749435054259,-480.0,0.00019161,2]
[365063071,1749435054268,-480.0,0.00019161,2]
[365063072,1749435054277,-468.28031619,0.00019161,2]
[365063073,1749435054286,-480.0,0.00019161,2]
[365063074,1749435054295,-480.0,0.00019161,2]
[365063075,1749435054305,-480.0,0.00019161,2]
[365063076,1749435054313,-509.4313271,0.00019161,2]
[365063077,1749435054322,-480.0,0.00019161,2]
[365063078,1749435054332,-177.13365565,0.00019161,2]
[365063079,1749435054342,-480.0,0.00019161,2]
[365063080,1749435054353,-480.0,0.00019161,2]
[365063081,1749435054363,-480.0,0.00019161,2]
[365063082,1749435054373,-480.0,0.00019161,2]
[365063083,1749435054382,-480.0,0.00019161,2]
[365063084,1749435054390,-480.0,0.00019161,2]
[365063085,1749435054400,-480.0,0.00019161,2]
[365063086,1749435054409,-480.0,0.00019161,2]
[365063087,1749435054420,-480.0,0.00019161,2]
[365063088,1749435054430,-480.0,0.00019161,2]
[365063089,1749435054439,-789.34,0.00019161,2]
[365063090,1749435054448,-10377.74,0.00019161,2]
[365063091,1749435054457,-480.0,0.00019161,2]
[365063092,1749435054466,-480.0,0.00019161,2]
[365063093,1749435054476,-495.10921381,0.00019161,2]
[365063094,1749435054486,-513.87827457,0.00019161,2]
[365063095,1749435054495,-480.0,0.00019161,2]
[365063096,1749435054505,-480.0,0.00019161,2]
[365063097,1749435054514,-173.07816677,0.00019161,2]
[365063098,1749435054523,-480.0,0.00019161,2]
[365063099,1749435054533,-1621.01,0.00019161,2]
[365063100,1749435054542,-480.0,0.00019161,2]
[365063101,1749435054552,-480.0,0.00019161,2]
[365063102,1749435054561,-480.0,0.00019161,2]
[365063103,1749435054570,-480.0,0.00019161,2]
[365063104,1749435054580,-512.75898928,0.00019161,2]
[365063105,1749435054589,-516.92216623,0.00019161,2]
[365063106,1749435054599,-540.43834284,0.00019161,2]
[365063107,1749435054608,-509.15861595,0.00019161,2]
[365063108,1749435054617,-6301.26,0.00019161,2]
[365063109,1749435054627,-533.18072473,0.00019161,2]
[365063110,1749435054637,-480.0,0.00019161,2]
[365063111,1749435054646,-451.52940904,0.00019161,2]
[365063112,1749435054655,-480.0,0.00019161,2]
[365063113,1749435054664,-480.0,0.00019161,2]
[365063114,1749435054674,-480.0,0.00019161,2]
[365063115,1749435054684,-583.31,0.00019161,2]
[365063116,1749435054694,-280.0,0.00019161,2]
[365063117,1749435054703,-480.0,0.00019161,2]
[365063118,1749435054713,-362.0741689,0.00019161,2]
[365063119,1749435054722,-480.0,0.00019161,2]
[365063120,1749435054731,-446.0058028,0.00019161,2]
[365063121,1749435054741,-480.0,0.00019161,2]
[365063122,1749435054751,-480.0,0.00019161,2]
[365063123,1749435054762,-480.0,0.00019161,2]
[365063124,1749435054771,-480.0,0.00019161,2]
[365063125,1749435054780,-480.0,0.00019161,2]
[365063126,1749435054789,-480.0,0.00019161,2]
[365063127,1749435054798,-480.0,0.00019161,2]
[365063128,1749435054807,-509.6,0.00019161,2]
[365063129,1749435054816,-528.38,0.00019161,2]
[365063130,1749435054826,-480.0,0.00019161,2]
[365063131,1749435054835,-443.29415702,0.00019161,2]
[365063132,1749435054844,-480.0,0.00019161,2]
[365063133,1749435054853,-386.01583447,0.00019161,2]
[365063134,1749435054862,-480.0,0.00019161,2]
[365063135,1749435054872,-480.0,0.00019161,2]
[365063136,1749435054881,-3587.7,0.00019161,2]
[365063137,1749435054890,-244.62367831,0.00019161,2]
[365063138,1749435054899,-480.0,0.00019161,2]
[365063139,1749435054908,-480.0,0.00019161,2]
[365063140,1749435054917,-306.04799599,0.00019161,2]
[365063141,1749435054927,-580.22,0.00019161,2]
[365063142,1749435054936,-480.0,0.00019161,2]
[365063143,1749435054953,-480.0,0.00019162,2]
[365063144,1749435054962,-480.0,0.00019162,2]
[365063145,1749435054971,-480.0,0.00019162,2]
[365063146,1749435054980,-480.0,0.00019162,2]
[365063147,1749435054990,-480.0,0.00019162,2]
[365063148,1749435054999,-480.0,0.00019162,2]
[365063149,1749435055008,-480.0,0.00019162,2]
[365063150,1749435055019,-480.0,0.00019162,2]
[365063151,1749435055028,-480.0,0.00019162,2]
[365063152,1749435055038,-480.0,0.00019162,2]
[365063153,1749435055047,-480.0,0.00019162,2]
[365063154,1749435055057,-480.0,0.00019162,2]
[365063155,1749435055066,-480.0,0.00019162,2]
[365063156,1749435055075,-480.0,0.00019162,2]
[365063157,1749435055084,-480.0,0.00019162,2]
[365063158,1749435055093,-480.0,0.00019162,2]
[365063159,1749435055103,-480.0,0.00019162,2]
[365063160,1749435055114,-480.0,0.00019162,2]
[365063161,1749435055126,-480.0,0.00019162,2]
[365063162,1749435055136,-480.0,0.00019162,2]
[365063163,1749435055144,-480.0,0.00019162,2]
[365063164,1749435055157,-174.45737311,0.00019162,2]
[365063165,1749435055166,-480.0,0.00019162,2]
[365063166,1749435055175,-480.0,0.00019162,2]
[365063167,1749435055187,-480.0,0.00019162,2]
[365063168,1749435055196,-480.0,0.00019162,2]
[365063169,1749435055205,-480.0,0.00019162,2]
[365063170,1749435055214,-480.0,0.00019162,2]
[365063171,1749435055223,-480.0,0.00019162,2]
[365063172,1749435055231,-480.0,0.00019162,2]
[365063173,1749435055240,-480.0,0.00019162,2]
[365063174,1749435055250,-1145.44,0.00019162,2]
[365063175,1749435055259,-480.0,0.00019162,2]
[365063176,1749435055268,-480.0,0.00019162,2]
[365063177,1749435055276,-300.0,0.00019162,2]
[365063178,1749435055286,-480.0,0.00019162,2]
[365063179,1749435055295,-480.0,0.00019162,2]
[365063180,1749435055305,-449.37904917,0.00019162,2]
[365063181,1749435055314,-618.93,0.00019162,2]
[365063182,1749435055323,-480.0,0.00019162,2]
[365063183,1749435055332,-480.0,0.00019162,2]
[365063184,1749435055342,-515.26,0.00019162,2]
[365063185,1749435055352,-480.0,0.00019162,2]
[365063186,1749435055362,-557.80988385,0.00019162,2]
[365063187,1749435055371,-480.0,0.00019162,2]
[365063188,1749435055380,-480.0,0.00019162,2]
[365063189,1749435055391,-480.0,0.00019162,2]
[365063190,1749435055402,-480.0,0.00019162,2]
[365063191,1749435055412,-480.0,0.00019162,2]
[365063192,1749435055421,-480.0,0.00019162,2]
[365063193,1749435055431,-605.47726239,0.00019162,2]
[365063194,1749435055440,-480.0,0.00019162,2]
[365063195,1749435055449,-480.0,0.00019162,2]
[365063196,1749435055459,-480.0,0.00019162,2]
[365063197,1749435055468,-480.0,0.00019162,2]
[365063198,1749435055479,-480.0,0.00019162,2]
[365063199,1749435055488,-480.0,0.00019162,2]
[365063200,1749435055500,-480.0,0.00019162,2]
[365063201,1749435055656,-480.0,0.00019162,2]
[365063202,1749435055666,-606.05277864,0.00019162,2]
[365063203,1749435055676,-480.0,0.00019162,2]
[365063204,1749435055685,-480.0,0.00019162,2]
[365063205,1749435055695,-480.0,0.00019162,2]
[365063206,1749435055703,-480.0,0.00019162,2]
[365063207,1749435055713,-480.0,0.00019162,2]
[365063208,1749435055722,-480.0,0.00019162,2]
[365063209,1749435055733,-480.0,0.00019162,2]
[365063210,1749435055742,-480.0,0.00019162,2]
[365063211,1749435055752,-480.0,0.00019162,2]
[365063212,1749435055761,-480.0,0.00019162,2]
[365063213,1749435055770,-480.0,0.00019162,2]
[365063214,1749435055779,-754.38,0.00019162,2]
[365063215,1749435055788,-480.0,0.00019162,2]
[365063216,1749435055797,-480.0,0.00019162,2]
[365063217,1749435055807,-480.0,0.00019162,2]
[365063218,1749435055815,-372.00690118,0.00019162,2]
[365063219,1749435055825,-480.0,0.00019162,2]
[365063220,1749435055835,-480.0,0.00019162,2]
[365063221,1749435055844,-480.0,0.00019162,2]
[365063222,1749435055853,-624.31,0.00019162,2]
[365063223,1749435055863,-635.33,0.00019162,2]
[365063224,1749435055872,-480.0,0.00019162,2]
[365063225,1749435055882,-560.58,0.00019162,2]
[365063226,1749435055891,-604.89,0.00019162,2]
[365063227,1749435055901,-480.0,0.00019162,2]
[365063228,1749435055911,-816.64,0.00019162,2]
[365063229,1749435055920,-711.73,0.00019162,2]
[365063230,1749435055930,-679.93,0.00019162,2]
[365063231,1749435055941,-480.0,0.00019162,2]
[365063232,1749435055953,-480.0,0.00019162,2]
[365063233,1749435055962,-480.0,0.00019162,2]
[365063234,1749435055971,-480.0,0.00019162,2]
[365063235,1749435055981,-480.0,0.00019162,2]
[365063236,1749435055992,-766.16,0.00019162,2]
[365063237,1749435056001,-480.0,0.00019162,2]
[365063238,1749435056011,-480.0,0.00019162,2]
[365063239,1749435056023,-480.0,0.00019162,2]
[365063240,1749435056031,-480.0,0.00019162,2]
[365063241,1749435056042,-480.0,0.00019162,2]
[365063242,1749435056051,-480.0,0.00019162,2]